Cogmind - Beta 9.4 @@@ ROGUE MODE // 2020.03.21 @ 15:10:48 Player: erp.lsf Result: Destroyed by G-47 Trooper with Particle Gun Performance ------------- Evolutions (3) 1500 Regions Visited (6) 1200 Robots Destroyed (30) 150 Value Destroyed (759) 759 Prototype IDs (1) 20 Alien Tech Used (0) 0 Bonus (0) 0 TOTAL SCORE: 3629 Bonus ------- None Cogmind --------- Core Integrity 0/700 Matter 12/300 Energy 14/100 System Corruption 1% Temperature Cool (9) Movement Core (200) Ox3 Location -7/Factory Parts ------- > --- POWER (3) -------- (None) > --- PROPULSION (4) --- (None) > --- UTILITY (4) ------ Improved Field Recycling Unit > --- WEAPON (2) ------- (None) > --- INVENTORY (4) ---- Xenon Bombardment Thruster Xenon Bombardment Thruster Xenon Bombardment Thruster Peak State ------------ > --- POWER ------------ Deuterium Engine Light Nuclear Core > --- PROPULSION ------- Aluminum Leg Carbon-fiber Leg Carbon-fiber Leg > --- UTILITY ---------- Improved Heat Sink Medium Storage Unit Medium Storage Unit Targeting Computer > --- WEAPON ----------- Beamcaster Heavy Assault Rifle > --- INVENTORY -------- Light Nuclear Core Aluminum Leg Improved VTOL Module Improved Heat Sink Heavy Assault Rifle Heavy Assault Rifle Improved Light Cannon Assault Cannon [Rating: 28] Favorites ----------- Power Light Nuclear Core Engine Light Ion Engine Power Core Light Nuclear Core Propulsion Aluminum Leg Treads Light Treads Leg Aluminum Leg Wheel Wheel Hover Unit Hover Unit Flight Unit Flight Unit Utility Targeting Computer Device Sensor Array Storage Medium Storage Unit Processor Targeting Computer Protection Light Armor Plating Weapon Heavy Assault Rifle Energy Gun Beamcaster Ballistic Gun Heavy Assault Rifle Ballistic Cannon Assault Cannon Build | -11 -10 -10 -10 -9 -8 -7 ------- Run | Scr Mat Min Exi Min Mat Fac Slots Evolved 6 | . . . . . 4 2 Power 2 | . . . . . 1 1 Propulsion 2 | . . . . . 1 1 Utility 2 | . . . . . 2 . Weapon . | . . . . . . . Parts Attached 63 | 4 9 8 2 5 33 2 Power 12 | 1 2 2 1 1 5 . Engine 7 | 1 2 1 . 1 2 . Core 5 | . . 1 1 . 3 . Reactor . | . . . . . . . Propulsion 20 | 2 2 3 . 3 9 1 Treads 1 | . . 1 . . . . Leg 10 | . . 2 . 3 5 . Wheel 2 | 2 . . . . . . Hover 2 | . 2 . . . . . Flight 5 | . . . . . 4 1 Utility 17 | . 3 1 1 . 11 1 Device 9 | . 2 . . . 6 1 Storage 6 | . . . 1 . 5 . Processor 1 | . . 1 . . . . Hackware . | . . . . . . . Protection 1 | . 1 . . . . . Artifact . | . . . . . . . Weapon 14 | 1 2 2 . 1 8 . Energy Gun 3 | 1 . . . 1 1 . Energy Cannon . | . . . . . . . Ballistic Gun 9 | . 2 2 . . 5 . Ballistic Cannon 2 | . . . . . 2 . Launcher . | . . . . . . . Special Weapon . | . . . . . . . Impact Weapon . | . . . . . . . Slashing Weapon . | . . . . . . . Piercing Weapon . | . . . . . . . Special Melee Weapon . | . . . . . . . Unidentified Prototypes 1 | . . . . . 1 . Parts Lost 19 | . . 4 . . 13 2 Power 5 | . . 1 . . 4 . Propulsion 8 | . . 2 . . 4 2 Utility 4 | . . 1 . . 3 . Weapon 2 | . . . . . 2 . Highest Loss Streak 9 | . . 4 . . 9 1 Average Slot Usage (%) 76 | . 92 73 99 100 73 9 Engine 4 | . 14 . . 11 7 . Core 5 | . . 2 13 2 4 . Treads 1 | . . 10 . . . . Leg 14 | . . 4 28 28 15 1 Wheel 2 | . 21 . . . . . Flight 2 | . . . . . 7 4 Device 7 | . 13 14 5 . 8 . Storage 6 | . . . 8 14 11 2 Processor 8 | . . 11 14 14 4 . Protection 1 | . 11 . . . . . Energy Gun 1 | . . . . 10 2 . Ballistic Gun 18 | . 24 27 28 17 9 . Naked Turns . | . . . . . . . Heaviest Build 63 | 5 20 12 19 20 63 12 Greatest Support 40 | 26 26 20 20 30 40 13 Greatest Overweight (x) 13 | . 2 2 . . 13 3 Average Overweight (x) . | . . . . . . . Largest Inventory Capacity 16 | 4 4 4 8 8 16 8 Average Capacity 6 | 4 4 4 6 8 9 5 Most Carried 9 | 1 4 4 5 7 9 8 Average Carried 4 | . 3 3 4 6 5 5 Final Capacity 8 | 4 4 4 8 8 8 4 Final Carried 8 | 1 3 4 5 7 8 3 Class Distribution -------------------- 52% | Scavenger-Mutant 44% | Mutant 3% | Sprinter Dominant Class ---------------- Mutant | -10/Materials Mutant | -10/Mines Scavenger-Mutant | -10/Exiles Scavenger-Mutant | -9/Mines Scavenger-Mutant | -8/Materials Mutant | -7/Factory Resources | -11 -10 -10 -10 -9 -8 -7 ----------- Run | Scr Mat Min Exi Min Mat Fac Matter Collected 958 | 240 184 153 . 88 293 . Remotely . | . . . . . . . Salvage Created 809 | . 237 186 . 27 359 . Parts 52 | . 18 8 . 6 20 . Haulers Intercepted . | . . . . . . . Recyclers Shooed 3 | . 3 . . . . . Parts Field Recycled 9 | . 9 . . . . . Retrieved Matter 93 | . 93 . . . . . Parts Self-Destructed . | . . . . . . . Prevented . | . . . . . . . Kills | -11 -10 -10 -10 -9 -8 -7 ------- Run | Scr Mat Min Exi Min Mat Fac Combat Hostiles Destroyed 27 | . 7 4 . 2 14 . Guns 24 | . 7 4 . 2 11 . Cannons 3 | . . . . . 3 . Classes Destroyed 6 | . 3 1 . . 2 . Worker 1 | . . . . . 1 . Watcher 2 | . 2 . . . . . Swarmer 13 | . 3 . . 2 8 . Grunt 10 | . 4 2 . . 4 . Brawler 1 | . . . . . 1 . Sentry 3 | . . 2 . . 1 . Best Kill Streak 8 | . 4 2 . 2 8 . Combat Bots Only 6 | . 3 2 . 2 6 . Max Kills in Single Turn 2 | . 2 1 . 2 1 . Gunslinging 1 | . 1 . . 1 . . Exploded . | . . . . . . . Melee . | . . . . . . . Uniques/NPCs Destroyed . | . . . . . . . Combat | -11 -10 -10 -10 -9 -8 -7 -------- Run | Scr Mat Min Exi Min Mat Fac Damage Taken 3321 | . 380 352 . 26 1722 841 Core 1339 | . 73 134 . . 419 713 Absorbed by Shields . | . . . . . . . Core Remaining (%) 46 | 100 . . . 17 23 . Volleys Fired 94 | . 25 18 . 3 48 . Largest 2 | . 2 2 . 2 2 . Hottest 98 | . 46 46 . 46 98 . Shots Fired 181 | . 50 29 . 6 96 . Gun 155 | . 50 29 . 6 70 . Cannon 26 | . . . . . 26 . Launcher . | . . . . . . . Special . | . . . . . . . Kinetic 170 | . 50 29 . 6 85 . Thermal 11 | . . . . . 11 . Explosive . | . . . . . . . Electromagnetic . | . . . . . . . Robot Hit Streak 11 | . 6 11 . 7 9 . Robot Miss Streak 6 | . 5 2 . 3 6 . Penetration Max . | . . . . . . . Secondary Targets 6 | . 2 1 . 1 2 . Max Gunslinging Chain 1 | . 1 1 . 1 1 . Shots Hit Robots 105 | . 23 23 . 3 56 . Core Hits 43 | . 11 8 . 2 21 1 Critical Hits 2 | . 1 1 . . . . Critical Kills . | . . . . . . . Critical Parts Destroyed 2 | . 1 1 . . . . Melee Attacks . | . . . . . . . Impact . | . . . . . . . Slashing . | . . . . . . . Piercing . | . . . . . . . Sneak Attacks . | . . . . . . . Combat Hostiles . | . . . . . . . Follow-up Attacks . | . . . . . . . Damage Inflicted 1755 | . 277 339 . 29 1086 24 Guns 1380 | . 277 339 . 26 738 . Cannons 346 | . . . . . 346 . Explosions . | . . . . . . . Melee . | . . . . . . . Ramming 29 | . . . . 3 2 24 Kinetic 1513 | . 277 339 . 26 871 . Thermal 213 | . . . . . 213 . Explosive . | . . . . . . . Electromagnetic . | . . . . . . . Impact . | . . . . . . . Slashing . | . . . . . . . Piercing . | . . . . . . . Highest Corruption 4 | . . . . . 4 1 Average Corruption 2 | . . . . . 3 1 Corruption Purged . | . . . . . . . Effects 5 | . . . . . 4 1 Message Errors 1 | . . . . . . 1 Heat Flow Errors 2 | . . . . . 2 . Targeting Errors 2 | . . . . . 2 . Overload Shots . | . . . . . . . Overflow Damage . | . . . . . . . Projectiles . | . . . . . . . Explosions . | . . . . . . . Melee . | . . . . . . . Knockbacks 1 | . . . . . 1 . Impact . | . . . . . . . Kinetic 1 | . . . . . 1 . Secondary . | . . . . . . . Self-Inflicted Damage 13 | . . . . 1 1 11 Shots . | . . . . . . . Rammed 8 | . . . . 1 1 6 Targets Rammed 8 | . . . . 1 1 6 Kicked . | . . . . . . . Crushed . | . . . . . . . Highest Temperature 408 | . 201 5 . . 408 4 Average Temperature 113 | . 76 2 . . 140 4 Received Heat Transfer 1092 | . 126 138 . . 522 306 Effects 5 | . . . . . 5 . Interference 1 | . . . . . 1 . Matter Decay 1 | . . . . . 1 . Damage (minor) 1 | . . . . . 1 . Damage (major) 2 | . . . . . 2 . Siege Activations . | . . . . . . . Robots Corrupted . | . . . . . . . Combat Hostiles . | . . . . . . . Parts Fried . | . . . . . . . Impact Corruptions . | . . . . . . . Robots Melted . | . . . . . . . Combat Hostiles . | . . . . . . . Parts Melted 1 | . . . . . 1 . Heat Transferred 333 | . . . . . 333 . Parts Sabotaged . | . . . . . . . Parts Stolen . | . . . . . . . Parts Stripped . | . . . . . . . Power Chain Reactions . | . . . . . . . Missiles Intercepted . | . . . . . . . Alert | -11 -10 -10 -10 -9 -8 -7 ------- Run | Scr Mat Min Exi Min Mat Fac Peak Influence 277 | . 204 144 . 50 277 87 Average Influence 87 | . 109 94 . 44 129 37 Maximum Alert Level 1 | . 1 . . . 1 . Low Security (%) 92 | 100 71 100 . 100 88 100 Level 1 7 | . 28 . . . 11 . Level 2 . | . . . . . . . Level 3 . | . . . . . . . Level 4 . | . . . . . . . Level 5 . | . . . . . . . High Security . | . . . . . . . Max Security . | . . . . . . . Squads Dispatched 3 | . 1 . . . . 2 Investigation 1 | . . . . . . 1 Extermination . | . . . . . . . Reinforcement 2 | . 1 . . . . 1 Assault . | . . . . . . . Garrison . | . . . . . . . Intercept . | . . . . . . . Construction Impeded . | . . . . . . . Haulers Reinforced . | . . . . . . . Stealth | -11 -10 -10 -10 -9 -8 -7 --------- Run | Scr Mat Min Exi Min Mat Fac Distress Signals 5 | . 1 . . 1 1 2 Communications Jammed . | . . . . . . . Distress Signals . | . . . . . . . Times Spotted 62 | . 13 5 . 3 20 21 Peak Tracking Total 7 | . 7 2 . 4 6 7 Tactical Retreats 9 | . 1 1 . . 2 5 Traps | -11 -10 -10 -10 -9 -8 -7 ------- Run | Scr Mat Min Exi Min Mat Fac Traps Triggered 4 | . . . . . . 4 Indirectly . | . . . . . . . Trap Hack Attempts . | . . . . . . . Triggered . | . . . . . . . Disarmed . | . . . . . . . Reprogrammed . | . . . . . . . Reused . | . . . . . . . Traps Extracted . | . . . . . . . Installed . | . . . . . . . Triggered . | . . . . . . . Machines | -11 -10 -10 -10 -9 -8 -7 ---------- Run | Scr Mat Min Exi Min Mat Fac Machines Disabled 2 | . 1 . . . 1 . Max in Single Turn 1 | . 1 . . . 1 . Machines Sabotaged . | . . . . . . . Garrisons Compromised . | . . . . . . . Overloaded Fab Kills . | . . . . . . . Fab Network Shutdowns . | . . . . . . . Hacking | -11 -10 -10 -10 -9 -8 -7 --------- Run | Scr Mat Min Exi Min Mat Fac Machines Accessed 9 | . 1 . 4 . 2 2 Terminals 3 | . 1 . . . 1 1 Fabricators . | . . . . . . . Repair Stations . | . . . . . . . Recycling Units 1 | . . . . . . 1 Scanalyzers 1 | . . . . . 1 . Garrison Access . | . . . . . . . Total Hacks 58 | . 1 . 48 . 3 6 Successful 54 | . 1 . 48 . 3 2 Failed 4 | . . . . . . 4 Catastrophic . | . . . . . . . Database Lockouts . | . . . . . . . Manual . | . . . . . . . Terminals 5 | . 1 . . . 1 3 Fabricators . | . . . . . . . Repair Stations . | . . . . . . . Recycling Units 3 | . . . . . . 3 Scanalyzers 2 | . . . . . 2 . Garrison Access . | . . . . . . . Terminal Hacks 51 | . 1 . 48 . 1 1 Record 49 | . . . 48 . 1 . Alert Level 1 | . 1 . . . . . Unreport Threat 1 | . . . . . . 1 Fabricator Hacks . | . . . . . . . Repair Station Hacks . | . . . . . . . Recycling Unit Hacks 1 | . . . . . . 1 Retrieve Matter 1 | . . . . . . 1 Scanalyzer 2 | . . . . . 2 . Insert Component 1 | . . . . . 1 . Analyze 1 | . . . . . 1 . Garrison Access Hacks . | . . . . . . . Unauthorized Hacks . | . . . . . . . Terminals . | . . . . . . . Fabricators . | . . . . . . . Repair Stations . | . . . . . . . Recycling Units . | . . . . . . . Scanalyzers . | . . . . . . . Garrison Access . | . . . . . . . Data Cores Recovered . | . . . . . . . Used . | . . . . . . . Hacking Detections 3 | . 1 . . . . 2 Full Trace Events 1 | . . . . . . 1 Feedback Events . | . . . . . . . Feedback Blocked . | . . . . . . . Robot Schematics Acquired . | . . . . . . . Robots Built . | . . . . . . . Matter . | . . . . . . . Time . | . . . . . . . Total Robot Build Rating . | . . . . . . . Part Schematics Acquired 1 | . . . . . 1 . Parts Built . | . . . . . . . Matter . | . . . . . . . Time . | . . . . . . . Total Part Build Rating . | . . . . . . . Parts Repaired . | . . . . . . . Time . | . . . . . . . Parts Recycled . | . . . . . . . Recycled Matter . | . . . . . . . Retrieved Matter . | . . . . . . . Retrieved Components . | . . . . . . . Parts Scanalyzed 1 | . . . . . 1 . Part Schematics Acquired 1 | . . . . . 1 . Parts Damaged . | . . . . . . . Bothacking | -11 -10 -10 -10 -9 -8 -7 ------------ Run | Scr Mat Min Exi Min Mat Fac Used RIF Installer . | . . . . . . . Robots Hacked . | . . . . . . . Non-combat . | . . . . . . . Combat . | . . . . . . . Robot Hacks Applied . | . . . . . . . Relay Couplers Released . | . . . . . . . Robots Rewired . | . . . . . . . Allies Hacked . | . . . . . . . Hacks Repelled . | . . . . . . . Allies | -11 -10 -10 -10 -9 -8 -7 -------- Run | Scr Mat Min Exi Min Mat Fac Total Allies 2 | . . . . 2 . . Largest Group 2 | . . . . 2 . . Highest-Rated Group 42 | . . . . 42 . . Highest-Rated Ally 31 | . . . . 31 . . Total Orders . | . . . . . . . Ally Attacks . | . . . . . . . Total Damage . | . . . . . . . Kills . | . . . . . . . Allies Corrupted . | . . . . . . . Allies Melted . | . . . . . . . Intel | -11 -10 -10 -10 -9 -8 -7 ------- Run | Scr Mat Min Exi Min Mat Fac Robot Analysis Total . | . . . . . . . Derelict Logs Recovered 1 | . . 1 . . . . Drone Launches . | . . . . . . . Drone Recoveries . | . . . . . . . Exploration | -11 -10 -10 -10 -9 -8 -7 ------------- Run | Scr Mat Min Exi Min Mat Fac Turns Passed 2864 | 46 334 420 816 235 599 414 Spaces Moved 2583 | 46 271 257 675 169 443 722 Core 55 | 3 . 7 . . 16 29 Treads 168 | . . 168 . . . . Legs 1153 | . . 54 675 169 170 85 Wheels 199 | 43 156 . . . . . Hover 143 | . 115 28 . . . . Flight 865 | . . . . . 257 608 Fastest Speed 32 | 50 56 56 120 120 32 40 Average Speed 92 | 85 76 140 120 120 83 55 Slowest Speed 1090 | 90 180 160 120 120 1090 200 Overloaded Moves . | . . . . . . . Propulsion Burnouts . | . . . . . . . Robots Hopped 8 | . . . . . 1 7 Cave-ins Triggered . | . . . . . . . Exploration Rate (%) 43 | 4 46 56 92 50 28 26 Regions Visited 6 Branch Regions 3 Pre-discovered Areas 2 | . . 1 1 . . . Known Exits Taken . | . . . . . . . Unknown Exits Taken 6 | 1 1 1 1 1 1 . Scrap Searched 1 | . . . . 1 . . Spaces Dug . | . . . . . . . Terrain Destroyed 7 | . . . . . 7 . Melee . | . . . . . . . Projectile 7 | . . . . . 7 . AOE . | . . . . . . . Actions | -11 -10 -10 -10 -9 -8 -7 --------- Run | Scr Mat Min Exi Min Mat Fac Total 2865 | 50 347 285 681 193 580 729 Wait 75 | . 35 . . 13 27 . Move 2561 | 45 270 256 674 168 440 708 Hop 8 | . . . . . 1 7 Pick Up 20 | 1 2 2 2 1 11 1 Fast Attach 26 | 4 7 4 2 1 8 . Attach 19 | . . 2 . . 15 2 Detach 3 | . . . . . 3 . Swap 18 | . 2 2 . 4 10 . Drop 33 | . 6 1 3 2 16 5 Fire 94 | . 25 18 . 3 48 . Melee . | . . . . . . . Ram 3 | . . . . . 1 2 Kick 5 | . . . . 1 . 4 Crush . | . . . . . . . Escape Stasis . | . . . . . . . Rewire . | . . . . . . . Trap . | . . . . . . . Miscellaneous . | . . . . . . . Route ------- -11/Scrapyard -10/Materials -10/Mines (discovered 2 exits: [*Mat] / *Exi) -10/Exiles (discovered 2 exits: [*Min x2]) -9/Mines -8/Materials -7/Factory (discovered 2 exits: [*Fac] / [*Low]) History --------- Turn | Location | Event 6 | -11/Scrapyard | Discovered new exit (range 15) 47 | -11/Scrapyard | Entered Materials 305 | -10/Materials | Discovered new exit (range 12) 353 | -10/Materials | Build established: Mutant 381 | -10/Materials | Entered Mines 425 | -10/Mines | Core integrity fell below 50% 439 | -10/Mines | Lost 4 parts (1p2n1u) 490 | -10/Mines | Discovered new exit (range 10) 557 | -10/Mines | Learned location of Storage (-7) 613 | -10/Mines | Deemed a non-threat by the Exiles lab entrance 615 | -10/Mines | Discovered new exit (range 5) 718 | -10/Mines | Core integrity fell below 20% 801 | -10/Mines | Entered Exiles 824 | -10/Exiles | Discovered new exit (range 15) 867 | -10/Exiles | Met 8R-AWN 887 | -10/Exiles | Met EX-HEX 950 | -10/Exiles | Met EX-DEC 1004 | -10/Exiles | Build established: Scavenger-Mutant 1034 | -10/Exiles | Learned location of Zion (-7) 1151 | -10/Exiles | Discovered new exit (range 14) 1235 | -10/Exiles | Met EX-BIN 1434 | -10/Exiles | Visited The Gauntlet 1617 | -10/Exiles | Entered Mines 1684 | -9/Mines | Assembled infested the area 1828 | -9/Mines | Discovered new exit (range 7) 1852 | -9/Mines | Entered Materials 1852 | -8/Materials | Evolved 4 slots: Power x1, Propulsion x1, Utility x2 2201 | -8/Materials | Core integrity fell below 50% 2216 | -8/Materials | Lost 9 parts (2p3n2u2w) 2420 | -8/Materials | Discovered new exit (range 16) 2451 | -8/Materials | Entered Factory 2451 | -7/Factory | Evolved 2 slots: Power x1, Propulsion x1 2698 | -7/Factory | Build established: Mutant 2723 | -7/Factory | Core integrity fell below 50% 2750 | -7/Factory | Discovered new exit (range 15) 2784 | -7/Factory | Discovered new exit (range 9) 2859 | -7/Factory | Core integrity fell below 20% 2865 | -7/Factory | Destroyed by G-47 Trooper with Particle Gun Last Messages --------------- Connecting with Recycling Unit... ALERT: Suspicious activity at Recycling Unit F006. Dispatching Investigation squad. Connecting with Fabricator... Triggered Heavy Explosive Trap. An explosion rips through the floor. Fabricator disabled. Nuclear Reactor explodes. K-01 Serf collects debris. The unstable cave ceiling collapses. EXIT=FOUND Slammed into U-05 Engineer. Destabilizing: Short circuit. Broken Xenon Bombardment Thruster permanently disabled. TKHVPK5 ERGGV9CN20ALD OC5OKVTWB Slammed into R-06 Scavenger. Destabilizing: Short circuit. Broken Xenon Bombardment Thruster permanently disabled. W-25 Informer sends out distress signal. Broken Xenon Bombardment Thruster destroyed. Map ----- +----------------------------------------------------+ | ?????????????????????????????????????????????????? | | ??????????????????????????????????????????????? | | ??????????????????????????????????????????????? | | ??????????????????????????????????????????????? | | ??????????????????????????????????????????????? | | ??????????????????????????????????????????????? | | ?????????????????????????????????????????????? | | ??????????????????????????????????????????????? | | ???????????????????????????????????????????????? | | ??????????????????????????????????? ?????????? | | ????????????????????????????????? ?????????? | | ??????????????????????????????" ?????????? | | ????????????????? ???????""" #????????? | | ?????????????? "????? #?????????# | | ???????????? ????? #?????????# | | ??????????# ?????? ########??# | | ?????????## ??????? # #??# | | ????????# ???????? # #??# | | ????????# ????????? # = #??# | | ????????# #??????????# # #??# | | ????????# #??????????# # #??# | | ????????# #??????????# # #??# | | ????????# #??????????# ####+###??# | | ????????# #??????????# ### ##### | | ????????# ######+##### < | | ????????# @ ### ! #### # | | ????????# #?#####??# # | | ????????# ag gu Y #???????## # | | ????????# g ####????# | | # ??????# ######+######### #????# | | # ????# ??# # #????# | | # ### ?# + #????##+# | | # ?# # #???? | | # # # #???# | | # # # #???# | | # + # #???# | | # # # #???# [ | | ?## #### # # #???# [ | | ???????# ?# # #???# | | ???????# ?# ########## #???# / | | ???????# ??# #????????? #???##### | | ???????# ??###############????????? ??????? | | ???????# ??????????????????????????? ??????? | | ???????# ??????????????????????????? ?????? | | ???????# ???????????????????????????? ?????? | | ???????# ???????????????????????????? ??????? | | ???????#????????????????????????????? ?????????? | | ?????????????????????????????????????????????????? | | ?????????????????????????????????????????????????? | | ?????????????????????????????????????????????????? | +----------------------------------------------------+ Best States ------------- Heat Dissipation 45 Energy Generation 23 Energy Capacity 425 Matter Stores 300 Matter Capacity 350 Sight Range 16 Robot Scan Range 10 Terrain Scan Density 10 Armor Coverage 150 Evasion (%) 63 Targeting Accuracy 5 Recoil Reduction 1 Particle Charging 15 Item Schematics ----------------- Flight Unit | -8/Materials | Scanalyzed Robot Schematics ------------------ None Fabricated ------------ Nothing Alien Tech Used ----------------- None Achievements -------------- Librarian Made in Tau Ceti IV Tourist Universal Adapter Challenges ------------ None Game ------ Seed FluxAlphaScanner Manual? 0 Play Time 00:43:16 Cumulative 4.6 hours Start 2020.03.20 @ 22:43:50 End 2020.03.21 @ 15:10:48 Sessions 5 Manual Loads 0 Difficulty Rogue Special Mode None Game No. 7 Rogue 7 Adventurer 0 Explorer 0 Win Type - Total 0 Types 0/0/0/0/0/0/0 Lore% 11 Gallery% 7 Achievement% 10 Wizard Run 0 Options --------- ASCII 0 Keyboard 0 Movement Numpad Keybinds 0 Fullscreen 2 Font 24/Smallcaps Map View 76x50 Tactical HUD 0 Map Filters NONE Filters NONE Steam 1 RUN: d9ea15fe-7cec-47c7-9781-07e4de349de5